{"text_format":"1","workbook":"xlsx","n_sheets":1,"sheets":["conceptos"],"not_rendered":{"charts":0,"images":2,"macros":1,"external_links":0,"defined_names":1,"comments":0,"pivot_tables":0},"unopened":[],"bounds":{"document_bytes":16777216,"sheet_cells":100000,"rows_first":2000,"rows_last":500,"rows_between":2000,"halvings":0,"cell_chars":16384,"cell_head_chars":4096},"cells_cut":0,"cells_raw":0,"read":"whole","date_system":"1900"}

{"sheet":"conceptos","index":0,"n_rows":89,"n_cols":8,"rows_kept":89,"cut":false,"hidden":false,"merged":[[86,0,86,4],[87,0,88,4],[13,0,13,6],[0,2,0,5],[9,2,9,5],[1,2,3,5],[4,2,4,3],[6,2,6,3],[7,2,7,3],[4,4,4,5],[5,4,5,5],[6,4,6,5],[7,4,7,5],[10,2,10,5],[11,2,11,5],[5,1,8,1]]}
[null,"GOBIERNO DEL ESTADO DE JALISCO","LICITACIÓN PÚBLICA ESTATAL"]
[null,"INSTITUTO DE LA INFRAESTRUCTURA FÍSICA EDUCATIVA DEL","E-REM-B-REH-01215-LP-0066-2020"]
[null,"ESTADO DE JALISCO"]
[]
[null,"DESCRIPCIÓN GENERAL DE LOS TRABAJOS:","FECHA DE INICIO:"]
[null,null,null,"FECHA DE TERMINACIÓN:"]
[null,null,"PLAZO DE EJECUCIÓN:"]
[null,null,"FECHA:"]
[]
[null,"RAZÓN SOCIAL DEL LICITANTE:","NOMBRE, CARGO Y FIRMA DEL LICITANTE:",null,null,null,"DOCUMENTO"]
[]
[]
[]
["PRESUPUESTO DE OBRA"]
[]
["CLAVE","DESCRIPCIÓN","UNIDAD","CANTIDAD","PRECIO UNITARIO ($)","PRECIO UNITARIO ($) CON LETRA","IMPORTE ($) M.N."]
["TRABAJO : BAS-REH-01215","REHABILITACIÓN GENERAL EN EL CENTRO DE ATENCIÓN MÚLTIPLE POLANCO CCT 14DML0037W, UBICADO EN LA COLONIA PATRIA NUEVA, MUNICIPIO DE GUADALAJARA, JALISCO.",null,null,null,null,{"$f":"TEXT(SUM(G18 + G63), \"$ #,##0.00 ;\")","v":"$ 0.00 "}]
["A","EDIFICIO A",null,null,null,null,{"$f":"TEXT(SUM(G19 + G33 + G37 + G40 + G44 + G46 + G51 + G59), \"$ #,##0.00 ;\")","v":"$ 0.00 "}]
["A.01(140)","DEMOLICIONES, DESMONTAJES Y MECANICA DE SUELOS    ",null,null,null,null,{"$f":"TEXT(SUM(G20:G32), \"$ #,##0.00 ;\")","v":"$ 0.00 "}]
[140050,"DEMOLICION DE FIRME DE LADRILLO DE LAMA DE 8 CM. DE ESPESOR ASENTADO CON MORTERO CAL-ARENA AMARILLA, INCLUYE; HERRAMIENTA, EQUIPO  NECESARIO, MANO DE OBRA Y ACARREO DE MATERIAL PRODUCTO DE DEMOLICION FUERA DE LA OBRA.","M2 ","48.0000",0,"CERO PESOS 00/100 M.N.",0,227162]
[140078,"DEMOLICION DE AZULEJO A CUALQUIER NIVEL, INCLUYE:,(PROTECCIONES DE PISOS, VIDRIOS, PUERTAS, VENTANAS, LAMPARAS Y DEMAS INSTALACIONES QUE PUDIERAN RESULTAR DAÑADAS EN EL PROCESO DE LA DEMOLICION.) HERRAMIENTAS, EQUIPO DE SEGURIDAD,  ANDAMIOS, MANO DE OBRA, ACARREO DEL PRODUCTO DE LA DEMOLICION  DENTRO Y FUERA DE LA OBRA Y LIMPIEZA DEL AREA DE TRABAJO.","M2 ","55.0000",0,"CERO PESOS 00/100 M.N.",0,227163]
[140083,"DEMOLICION DE APLANADOS DE 2.5 CMS. DE ESPESOR EN MUROS Y BOVEDAS  A CUALQUIER NIVEL, INCLUYE: (PROTECCIONES DE PISOS, VIDRIOS, PUERTAS, VENTANAS, LAMPARAS Y DEMAS INSTALACIONES QUE PUDIERAN RESULTAR DAÑADAS EN EL PROCESO DE LA DEMOLICION.) HERRAMIENTAS, EQUIPO DE SEGURIDAD,  ANDAMIOS, MANO DE OBRA, RETIRO Y ACARREO DE MATERIALES DE DESHECHO DENTRO Y FUERA DE LA OBRA ATIRADERO AUTORIZADO Y LIMPIEZA DEL AREA DE LOS TRABAJOS.","M2 ","55.0000",0,"CERO PESOS 00/100 M.N.",0,227164]
[140123,"DESMANTELAR Y RETIRAR INSTALACION HIDRAULICA EXISTENTE. INCLUYE: HERRAMIENTA, MANO DE OBRA, LIMPIEZA DEL AREA DE TRABAJO, ACARREO DEL MATERIAL PRODUCTO DEL DESMANTELAMIENTO DENTRO Y FUERA DE LA OBRA.\n","SAL","18.0000",0,"CERO PESOS 00/100 M.N.",0,227165]
[140124,"DESMANTELAR Y RETIRAR INSTALACION SANITARIA EXISTENTE. INCLUYE:MANO DE OBRA, HERRAMIENTA, LIMPIEZA DEL AREA DE TRABAJO,  ACARREO DEL MATERIAL PRODUCTO DEL DESMANTELAMIENTO DENTRO Y FUERA DE LA OBRA.\n","SAL","18.0000",0,"CERO PESOS 00/100 M.N.",0,227166]
[140129,"DESINSTALACION DE MUEBLE DE BAÑO YA SEA INODORO, LAVABO, MINGITORIO,  ETC. SIN RECUPERACION  INCLUYE:  DESCONEXION, HERRAMIENTAS, MANO DE OBRA, LIMPIEZA Y ACARREO DEL MUEBLE FUERA DE LA OBRA.","PZA","21.0000",0,"CERO PESOS 00/100 M.N.",0,227167]
[140199,"DESMONTAJE DE PUERTAS Y MAMPARAS CON MARCO Y CONTRA MARCOS DE HERRERIA TUBULAR Y/O DE ALUMINIO EXISTENTES EN OBRA, SIN RECUPERACION, TRASLADO Y GUARDADO EN BODEGA O LUGAR INDICADO POR SUPERVISION. INCLUYE; ANTEPECHO, DEMOLICION DE ANCLAJES, ACARREO Y RETIRO FUERA DE OBRA DE MATERIAL PRODUCTO DE LA DEMOLICION, MANO DE OBRA CALIFICADA Y LIMPIEZA DEL AREA DE TRABAJO.","M2 ","35.0000",0,"CERO PESOS 00/100 M.N.",0,227168]
[140237,"DEMOLICION DE MUROS DE LADRILLO DE LAMA DE 14 CMS. DE ESPESOR PROMEDIO, HASTA 8.00 M. DE ALTURA Y EN ESPACIOS REDUCIDOS, INCLUYE: HERRAMIENTAS, MANO DE OBRA Y ACARREO DEL ESCOMBRO FUERA DE LA OBRA EN CAMION. (TRABAJO EJECUTADO EN ESPACIOS REDUCIDOS).","M2 ","7.0000",0,"CERO PESOS 00/100 M.N.",0,227169]
[140237,"DEMOLICION DE MUROS DE LADRILLO DE LAMA DE 14 CMS. DE ESPESOR PROMEDIO, HASTA 8.00 M. DE ALTURA Y EN ESPACIOS REDUCIDOS, INCLUYE: HERRAMIENTAS, MANO DE OBRA Y ACARREO DEL ESCOMBRO FUERA DE LA OBRA EN CAMION. (TRABAJO EJECUTADO EN ESPACIOS REDUCIDOS).","M2 ","30.0000",0,"CERO PESOS 00/100 M.N.",0,227170]
[140652,"DEMOLICION DE LOSA DE CONCRETO ARMADO RECUBIERTA DE AZULEJO A CUALQUIER NIVEL. INCLUYE: RETIRO DEL MATERIAL PRODUCTO DE LA DEMOLICION DENTRO Y  FUERA DE LA OBRA, HERRAMIENTA, MANO DE OBRA, Y LIMPIEZA DEL AREA DE TRABAJO.","M2 ","4.0000",0,"CERO PESOS 00/100 M.N.",0,227171]
[906946,"DESINSTALACION DE CRISTAL FLOTADO DE 6 MM. DE ESPESOR EN MAL ESTADO, ASENTADO CON SILICON, INCLUYE: ACARREO DE LOS MATERIALES, CORTES, DESPERDICIOS, HERRAMIENTAS, MANO DE OBRA Y ACARREO DE LOS MATERIALES HASTA EL SITIO DE SU UTILIZACION A CUALQUIER NIVEL.","M2 ","4.0000",0,"CERO PESOS 00/100 M.N.",0,227172]
[917484,"DESMONTAJE HERRERIA TUBULAR Y/O ALUMINIO CON CRISTALES EXISTENTES EN OBRA, CON RECUPERACION, A CUALQUIER NIVEL TRASLADO Y GUARDADO EN BODEGA O LUGAR INDICADO POR SUPERVISION. INCLUYE; ANDAMIOS, (PROTECCIONES DE PISOS, VIDRIOS, PUERTAS, VENTANAS, LAMPARAS Y DEMAS INSTALACIONES QUE PUDIERAN RESULTAR DAÑADAS EN EL PROCESO DEL DESMONTAJE.)  DEMOLICION DE ANCLAJES, ACARREOS Y ESTIBADO, MANO DE OBRA CALIFICADA Y LIMPIEZA DEL AREA DE TRABAJO.","M2 ","4.0000",0,"CERO PESOS 00/100 M.N.",0,227173]
[929757,"DEMOLICION DE PISO DE CERAMICA EN INTERIOR DE AULA A CUALQUIER NIVEL. INCLUYE;  (PROTECCIONES DE INSTALACIONES QUE PUDIERAN RESULTAR DAÑADAS EN EL PROCESO DE LA DEMOLICION.)  CORTE CON DISCO PARA DELIMITAR AREAS DE DEMOLICION, HERRAMIENTAS, MANO DE OBRA, ACARREO DEL PRODUCTO DE LA DEMOLICION  DENTRO Y FUERA DE LA OBRA Y  LIMPIEZA DEL AREA DE TRABAJO..","M2 ","48.0000",0,"CERO PESOS 00/100 M.N.",0,227174]
["A.02(355)","RECUBRIMIENTOS Y ACABADOS                         ",null,null,null,null,{"$f":"TEXT(SUM(G34:G36), \"$ #,##0.00 ;\")","v":"$ 0.00 "}]
[355001,"APLANADO EN TECHO CON MORTERO CEMENTO-CALHIDRA-ARENA EN PROPORCION 1:2:6, DE 3.0 CMS. DE ESPESOR PROMEDIO, ACABADO APALILLADO FINO, INCLUYE: MATERIALES, DESPERDICIOS, NIVELACION, REMATES, BOLEADOS, ANDAMIOS, HERRAMIENTAS, LIMPIEZA, MANO DE OBRA Y ACARREO DE LOS MATERIALES AL SITIO DE SU UTILIZACION.","M2 ","55.0000",0,"CERO PESOS 00/100 M.N.",0,227175]
[357352,"FILETES Y BOLEADOS, HECHOS CON MORTERO CEMENTO-CAL-ARENA EN PROPORCION 1:2:6, INCLUYE: DESPERDICIOS, ANDAMIOS Y ACARREO DE MATERIALES AL SITIO DE SU UTILIZACION, A CUALQUIER NIVEL.","ML ","14.0000",0,"CERO PESOS 00/100 M.N.",0,227176]
[358052,"SUMINISTRO Y COLOCACION DE LOSETA CERAMICA PARA MURO ( AZULEJO ), PRENSADO EN SECO, CON RECUBRIMIENTO ESMALTADO DE COLOR, QUEMADO A BICOCCION A TEMPERATURAS DE 1,150 A 1200 °C,  CRAQUELADO, CALIDAD DE PRIMERA, QUE DEBERA CUMPLIR CON LAS SIGUIENTES CARACTERISTICAS TECNICAS: ABSORCION <= 15% , COEFICIENTE DE ESTATICO DE FRICCION >= 0.5, MODULO DE RUPTURA >= 180 KG/CM², RESISTENCIA A LA ADHESION >=50 P.S.I., RESISTENTE AL MANCHADO, RESISTENCIA AL RAYADO >= 4.0 MOHS, RESISTENTE A LOS QUIMICOS   ASENTADO CON PEGAZULEJO Y JUNTEDO CON JUNTEADOR BLANCO,  JUNTAS A HUESO, INCLUYE: TRAZO, CORTE, REMATES, ESCUADRE, DESPERDICIOS, DESPATINADO, EMBOQUILLADOS, CERTIFICADO DE CALIDAD, HERRAMIENTAS, MATERIALES,  MANO DE OBRA, LIMPIEZA Y ACARREO DE MATERIALES AL SITIO DE SU UTILIZACION, A CUALQUIER NIVEL.","M2 ","55.0000",0,"CERO PESOS 00/100 M.N.",0,227177]
["A.03(372)","PISOS                                             ",null,null,null,null,{"$f":"TEXT(SUM(G38:G39), \"$ #,##0.00 ;\")","v":"$ 0.00 "}]
[372242,"FIRME DE CONCRETO F´C= 150 KG/CM2 TMA= 3/4\",  DE 8 CM DE ESPESOR, ACABADO APALILLADO. INCLUYE: TRAZO, NIVELACION, AFINE Y COMPACTACION DEL TERRENO, AGUA, MATERIALES, EXTENDIDO, REGLEADO, CURADO, DESPERDICIOS, HERRAMIENTAS, LIMPIEZA, MANO DE OBRA Y ACARREO DEL MATERIAL AL SITIO DE SU UTILIZACION","M2 ","48.0000",0,"CERO PESOS 00/100 M.N.",0,227178]
[376046,"SUMINISTRO Y COLOCACION DE PISO DE  LOSETA CERAMICA DE 30 X 30 CM., 33 X 33 CM., PRENSADO EN SECO, CON RECUBRIMIENTO ESMALTADO DE COLOR, QUEMADO A MONOCOCCION A TEMPERATURAS DE 1,150 A 1200 °C,  CALIDAD DE PRIMERA, QUE DEBERA CUMPLIR CON LAS SIGUIENTES CARACTERISTICAS TECNICAS: ABSORCION <= 3% , COEFICIENTE DE ESTATICO DE FRICCION >= 0.5, MODULO DE RUPTURA >= 300 KG/CM², PEI, RESISTENCIA A LA ABRASION VISIBLE 1500 CICLOS (PEI IV), RESISTENTE AL MANCHADO, RESISTENCIA AL RAYADO >= 5.0 MOHS, RESISTENTE A LOS QUIMICOS. ASENTADO CON PEGAPISO Y JUNTEDO CON JUNTEADOR DE COLOR,  JUNTAS DE 4 MM. DE ANCHO, MINIMO,  INCLUYE: TRAZO, CORTE, REMATES, ESCUADRE, DESPERDICIOS, DESPATINADO, EMBOQUILLADOS, CERTIFICADO DE CALIDAD, HERRAMIENTAS, MATERIALES,  MANO DE OBRA, LIMPIEZA  Y ACARREO DE MATERIALES AL SITIO DE SU UTILIZACION, A CUALQUIER NIVEL.","M2 ","48.0000",0,"CERO PESOS 00/100 M.N.",0,227179]
["A.04(382)","ELEMENTOS COMPLEMENTARIOS DE ALBAÑILERIA          ",null,null,null,null,{"$f":"TEXT(SUM(G41:G43), \"$ #,##0.00 ;\")","v":"$ 0.00 "}]
[382017,"LOSA DE CONCRETO FC=200 KG/CM2 DE 10.0 CMS. DE ESPESOR Y 60.0 CMS. DE ANCHO, PARA RECIBIR LAVABO U OVALIN, ARMADA CON VARILLA #3 @ 30.0 CMS. EN AMBOS SENTIDOS, ACABADO APALILLADO, INCLUYE: TRAZO, CIMBRA COMUN Y DESCIMBRADO, RECUBRIMIENTO DE MARMOL TRAVERTINO DE 2 CM. DE ESPESOR, ORILLAS REDONDEADAS, DESPERDICIOS, NIVELACION, CORTES, ABRILLANTADO, AJUSTES, REMATES, ZOCLO 10.0 CMS, FALDONES 10.0 CMS., TALADROS PARA LLAVES Y OVALINES, HERRAMIENTAS, MANO DE OBRA, LIMPIEZA Y ACARREO DE MATERIAL AL SITIO DE SU UTILIZACION, A CUALQUIER NIVEL .","ML ","4.0000",0,"CERO PESOS 00/100 M.N.",0,227180]
[383022,"FORJADO DE BASE PARA VERTEDERO DE 0.40 X 0.40 X 0.40 M. MEDIDAS INTERIORES, FORJADA CON LADRILLO DE LAMA DE 14 CM. DE ESPESOR ASENTADO Y APLANADO CON MORTERO CEMENTO-ARENA DE RIO EN PROPORCION 1:3, RECUBIERTA CON AZULEJO DE 1RA. EN AREAS  EXTERIORES, INCLUYE: TRAZO, NIVELACION, PLOMEO, EMBOQUILLADO, ACARREO DE MATERIALES AL SITIO DE SU UTILIZACION, MANO DE OBRA Y HERRAMIENTA.","PZA","2.0000",0,"CERO PESOS 00/100 M.N.",0,227181]
[383312,"CANAL DE DESAGUE EN SANITARIOS, DE 12.0 X 12.0 CM DE SECCION INTERIOR, FORJADO CON CONCRETO F'C=150 KG/CM2, ACABADO COMUN, RECUBIERTO CON LOSETA CERAMICA DE PRIMERA CALIDAD IGUAL AL DEL AREA CONTIGUA, JUNTEADO CON JUNTEADOR DE COLOR, INCLUYE: ACARREO DE MATERIALES AL SITIO DE SU UTILIZACION, A CUALQUIER NIVEL.","ML ","12.0000",0,"CERO PESOS 00/100 M.N.",0,227182]
["A.05(393)","PINTURA                                           ",null,null,null,null,{"$f":"TEXT(SUM(G45:G45), \"$ #,##0.00 ;\")","v":"$ 0.00 "}]
[907620,"PINTURA DE ESMALTE ALQUIDALICO ANTICORROSIVO, ACABADO BRILLANTE, PARA INTERIORES Y EXTERIORES QUE NO DESPRENDA VAPORES TÓXICOS NI OLORES DESAGRADABLES, CON LAS SIGUIENTES CARACTERÍSTICAS ( SÓLIDOS POR PESO 49-60%, SÓLIDOS POR VOLUMEN 40-46%, VISCOSIDAD DE 110-160 UK A 25°C, DENSIDAD 0.9-1.2 TON/M3., BRILLO A 60°C, 90%, TIEMPO DE SECADO AL TACTO, < O = 6 HRS., TIEMPO DE SECADO DURO < O = 24 HRS., ADHERENCIA 100%, RENDIMIENTO EN SUP. LISA 8-10 M2/LT., DILUCIÓN MÁXIMA (AGUARRÁS, THINER), 15 %,  EN BARANDAL METALICO FABRICADAO CON 2 PERFILES TUBULARES EN FORMA HORIZONTAL Y UN VERTICAL A BASE DE ANGULO @ 15 CM PROMEDIO , EN COLOR DE ACUERDO A INDICADO POR SUPERVISIÓN, PINTADO POR AMBAS CARAS Y MEDIDO POR UN SOLO LADO, TRABAJO TERMINADO, A DOS MANOS, INCLUYE: MATERIALES MENORES Y DE CONSUMO, PREPARACION DE LA SUPERFICIE, ANDAMIOS, HERRAMIENTAS, LIMPIEZA, MANO DE OBRA Y  EQUIPO DE SEGURIDAD. CUALQUIER ALTURA.","M2 ","20.0000",0,"CERO PESOS 00/100 M.N.",0,227183]
["A.06(396)","LIMPIEZA                                          ",null,null,null,null,{"$f":"TEXT(SUM(G47:G50), \"$ #,##0.00 ;\")","v":"$ 0.00 "}]
[396022,"LIMPIEZA EN PISO DE CERAMICA, CON AGUA Y JABON.","M2 ","35.0000",0,"CERO PESOS 00/100 M.N.",0,227184]
[396032,"LIMPIEZA DE RECUBRIMIENTOS VIDRIADOS EN MUROS, CON JABON, AGUA Y ACIDO MURIATICO AL 10 %.","M2 ","95.0000",0,"CERO PESOS 00/100 M.N.",0,227185]
[396042,"LIMPIEZA DE VIDRIOS CON AGUA Y JABON, 2 CARAS.","M2 ","15.0000",0,"CERO PESOS 00/100 M.N.",0,227186]
[396222,"LIMPIEZA DE MUEBLES DE BAÑO, CON AGUA Y JABON.","PZA","12.0000",0,"CERO PESOS 00/100 M.N.",0,227187]
["A.07(410)","CANCELERIA, HERRERIA, ALUMINIO, VIDRIOS Y CHAPAS  ",null,null,null,null,{"$f":"TEXT(SUM(G52:G58), \"$ #,##0.00 ;\")","v":"$ 0.00 "}]
[412041,"FABRICACION, SUMINISTRO Y COLOCACION DE PROTECCIONES PARA VENTANERIA A BASE DE HERRERIA ESTRUCTURAL DE ACERO, ELABORADA CON UN PERFIL PERIMETRAL DE ANGULO DE 1 1/2\" X 1 1/2\" X 3/16\",  HORIZONTALES DE REDONDO SOLIDO LISO DE 1/2\" SEPARADOS  DE C. A C. 11.5 CM. PROMEDIO Y REFUERZOS VERTICALES DE SOLERA DE 3/16\" X 1 1/4\" COLOCADOS A @ 73.5 CM. PROMEDIO, CON PERFORACIONES PARA INSERCION DE REDONDOS. ANCLADA A ESTRUCTURA (CONSTRUCCION) A BASE DE TORNILLO CON BARRENANCLA Y/O SOLDADURA,  INCLUYE: TRAZO, CORTES, SOLDADURA, NIVELACION, PLAMEO, PERFORACIONES, PINTURA DE TALLER,  AJUSTES Y DETALLES REALIZADOS EN OBRA DE ACUERDO A LO CONSTRUIDO,  ACARREOS, LIMPIEZA, MATERIALES, DESPERDICIOS, HERRAMIENTAS, EQUIPOS, MANO DE OBRA CALIFICADA Y ACARREO DE MATERIALES AL SITIO DE SU COLOCACION. EN CUALQUIER NIVEL.","M2 ","8.0000",0,"CERO PESOS 00/100 M.N.",0,227188]
[420022,"SUMINISTRO, HABILITADO Y COLOCACION DE CANCELERIA FABRICADA  EN ALUMINIO ANODIZADO NATURAL CON PERFILES COMERCIALES DE 2\" X 1.25\",  MCA. CUPRUM ,  LINEA PANORAMA O SIMILAR, INCLUYE: TRAZO, CORTES, AJUSTES, MATERIALES, CORREDERAS, JALADERAS, OPERADORES, REPISON, SELLADO PERIMETRAL, SILICON, VINIL, HERRAJES, ELEMENTOS DE FIJACION, MATERIALES MENORES Y DE CONSUMO, DESPERDICIOS, HERRAMIENTAS, MANO DE OBRA ESPECIALIZADA, LIMPIEZA, FLETES, EQUIPO Y ACARREO DE MATERIALES AL SITIO DE SU COLOCACION, A CUALQUIER NIVEL.","M2 ","7.0000",0,"CERO PESOS 00/100 M.N.",0,227189]
[424094,"SUMINISTRO Y COLOCACION DE CERRADURA TIPO EUROPEO PARA PUERTA EXTERIOR, MCA. JAKO, MOD. KIT9001ENT, FABRICADA EN ACERO INOXIDABLE CON ACABADO SATINADO, DOBLE MANIJA DE PERFIL TUBULAR REDONDO Y CILINDRO LLAVE-MARIPOSA, INCLUYE: TRAZO, TALADROS, ELEMENTOS DE FIJACION, HERRAMIENTAS, CILINDRO, CHAPETÓN, LLAVES, LIMPIEZA,  MANO DE OBRA Y  ACARREO DE MATERIAL AL SITIO DE SU UTILIZACION.","PZA","2.0000",0,"CERO PESOS 00/100 M.N.",0,227190]
[424322,"SUMINISTRO Y COLOCACION DE TOPES DE PISO PARA PUERTA. INC.: ACARREO DE MATERIAL AL SITIO DE SU UTILIZACION, A CUALQUIER NIVEL.","PZA","2.0000",0,"CERO PESOS 00/100 M.N.",0,227191]
[426010,"SUMINISTRO Y COLOCACION DE CRISTAL FLOTADO DE 6 MM. DE ESPESOR,  ASENTADO CON SILICON, INCLUYE: CORTES, DESPERDICIOS Y ACARREO DE MATERIALES AL SITIO DE SU UTILIZACION A CUALQUIER NIVEL.","M2 ","5.0000",0,"CERO PESOS 00/100 M.N.",0,227192]
[426522,"SUMINISTRO Y COLOCACION DE ESPEJO DE 0.40 X 0.60 MTS. DE SECCION, MONTADA EN BASTIDOR DE MADERA Y TRIPLAY DE PINO DE 6 MM., INCLUYE: MARCO DE ALUMINIO ANODIZADO NATURAL, MATERIALES, EQUIPO, HERRAMIENTA Y MANO DE OBRA.","PZA","4.0000",0,"CERO PESOS 00/100 M.N.",0,227193]
[907361,"SUMINISTRO Y COLOCACION DE PUERTAS Y/O  MAMPARAS MCA.  MODUMEX O SIMILAR, LINEA LEEDER,  MODELO ESTANDAR, FABRICADAS CON CAPAS DE FIBRA CELULOSA, PAPEL DECORATIVO Y RESINAS,  BAJO UN PROCESO DE LAMINADO PLASTICO DE ALTA PRESION, CON UN ESPESOR TOTAL DE 12.7 MM. , CON ACABADO ANTI GRAFFITI,  EN COLOR INDICADO EN OBRA POR LA SUPERVISION,  INCLUYE: HERRAJES, PASADORES CON AVISO DE VACANTE Y OCUPADO, BISAGRAS, TOPES, JALADERAS, SOPORTES INFERIORES PARA PILASTRA REDONDOS DE ACERO INOXIDABLE CAL. 12 Y CAPUCHON DE NYLON,  DESPERDICIOS, AJUSTES,  MATERIALES DE FIJACION, MANO DE OBRA ESPECIALIZADA, HERRAMIENTAS, MANO DE OBRA, LIMPIEZA Y ACARREO DE MATERIALES AL SITIO DE SU UTILIZACION. (AREA EFECTIVA DE LA MAMPARA)","M2 ","25.0000",0,"CERO PESOS 00/100 M.N.",0,227194]
["A.08(564)","INSTALACION HIDRAULICA, SANITARIA Y GAS EN EDIF.  ",null,null,null,null,{"$f":"TEXT(SUM(G60:G62), \"$ #,##0.00 ;\")","v":"$ 0.00 "}]
[570614,"SALIDA HIDRAULICA DE AGUA FRIA Y/O CALIENTE, PARA ALIMENTACION A MUEBLE SANITARIO, CONSISTENTE EN TUBERIA Y CONEXIONES DE CPVC DE 1/2\" A 2\" DE DIAMETRO,  INCLUYE: TRAZO, RANURAS, CAMARAS CONTRA GOLPE DE ARIETE, CONEXIONES, ( COPLES, CODOS, TAPONES, TEES, YEES, REDUCCIONES, ETC),  VALVULAS, TUERCAS UNION EN CUADROS DE VALVULAS, MATERIALES MENORES Y DE CONSUMO, PEGAMENTOS, ELEMENTOS DE FIJACION, DESPERDICIOS,  HERRAMIENTAS, LIMPIEZA, MANO DE OBRA, PRUEBAS HIDROSTATICAS, FLETES Y ACARREO DE LOS MATERIALES AL SITIO DE SU INSTALACION. (EN CUALQUIER NIVEL)","SAL","18.0000",0,"CERO PESOS 00/100 M.N.",0,227195]
[571102,"SALIDA SANITARIA A MUEBLE, CONSISTENTE EN TUBERIA Y CONEXIONES DE PVC DE 2\" Y 4\" DE DIAMETRO, INCLUYE: DESPERDICIO DE TUBERIA, LINEA DE VENTILACION (DESFOGUE),  COPLES, CODOS, TEES, YEES, REDUCCIONES, REGISTRO SANITARIO, MATERIALES MENORES, FLETES Y ACARREO DE LOS MATERIALES AL SITIO DE SU INSTALACION Y PRUEBAS.\n","SAL","18.0000",0,"CERO PESOS 00/100 M.N.",0,227196]
[592012,"SUMINISTRO Y COLOCACION DE CESPOL BOTE DE P.V.C. CON REJILLA CROMADA. INCLUYE: MATERIALES MENORES Y DE CONSUMO, HERRAMIENTAS, DESPERDICIOS, PRUEBAS, MANO DE OBRA Y ACARREO DE MATERIALES AL SITIO DE SU COLOCACION.","PZA","6.0000",0,"CERO PESOS 00/100 M.N.",0,227197]
["03","RED SANITARIA",null,null,null,null,{"$f":"TEXT(SUM(G64 + G67 + G69), \"$ #,##0.00 ;\")","v":"$ 0.00 "}]
["03.01(140)","DEMOLICIONES, DESMONTAJES Y MECANICA DE SUELOS    ",null,null,null,null,{"$f":"TEXT(SUM(G65:G66), \"$ #,##0.00 ;\")","v":"$ 0.00 "}]
[140033,"DEMOLICION DE REGISTROS EXISTENTES DE .60 X.60 X.80 CMS. DE TABIQUE CON MORTERO- ARENA DE RIO INCLUYE DESMONTAJE DE MARCO Y CONTRAMARCO, TAPONAMIENTO DE SALIDAS, TRASPALEO DE MATERIAL, ACARREO Y RETIRO FUERA DE OBRA DE MATERIAL PRODUCTO DE LA DEMOLICION.\n","PZA","2.0000",0,"CERO PESOS 00/100 M.N.",0,227198]
[933539,"DESINSTALACION DE LINEAS HIDRAULICAS Y/O SANITARIAS, INCLUYE: RETIRO DE TUBERIA HIDRAULICA Y/O  SANITARIA, HERRAMIENTA, MANO DE OBRA, ACARREOS DENTRO Y FUERA DE LA OBRA DEL MATERIAL PRODUCTO DE LA DESINSTALACION Y LIMPIEZA DEL AREA DE TRABAJO.","ML ","40.0000",0,"CERO PESOS 00/100 M.N.",0,227199]
["03.02(564)","INSTALACION HIDRAULICA, SANITARIA Y GAS EN EDIF.  ",null,null,null,null,{"$f":"TEXT(SUM(G68:G68), \"$ #,##0.00 ;\")","v":"$ 0.00 "}]
[585014,"SUMINISTRO Y COLOCACION DE TUBO DE P.V.C. SANITARIO (ANGER)  SERIE 25, CAMPANA, DE 6\" (150 MM) DIAM., INCLUYE: CONEXIONES, TRAZO, EXCAVACION,  PASOS POR CIMENTACION, CAMA DE ARENA, RELLENO COMPACTADO, DESPERDICIOS, PRUEBAS Y ACARREO DE MATERIALES AL SITIO DE SU COLOCACION.","ML ","59.5000",0,"CERO PESOS 00/100 M.N.",0,227200]
["03.03(565)","INSTALACION HIDRAULICA, SANITARIA Y GAS EN O. EXT.",null,null,null,null,{"$f":"TEXT(SUM(G70:G70), \"$ #,##0.00 ;\")","v":"$ 0.00 "}]
[596036,"REGISTRO SANITARIO DE 0.60 X 0.60 X 0.80 M, CON MURO DE LADRILLO DE LAMA DE 5.5 X 11.0 X 22.0 CM, ASENTADO CON MORTERO CEMENTO-ARENA 1:3, APLANADO CON MORTERO CEMENTO-ARENA DE RIO 1:3, INCLUYE: TRAZO, EXCAVACIONES, NIVELACION, RELLENO CON MATERIAL PRODUCTO DE EXCAVACION, RETIRO DE MATERIAL EXCEDENTE FUERA DE LA OBRA, TAPA DE CONCRETO F'C=200 KG/CM2, MARCO Y CONTRAMARCO DE ANGULO DE 1 1/2\" X 1/8\", MATERIALES, DESPERDICIOS, HERRAMIENTAS, MANO DE OBRA, LIMPIEZA, RETIRO DE MATERIAL PRODUCTO DE EXCAVACION FUERA DE LA OBRA Y ACARREO DE MATERIALES AL SITIO DE SU UTILIZACION.","PZA","3.0000",0,"CERO PESOS 00/100 M.N.",0,227201]
[null,"RESUMEN DE PARTIDAS"]
["BAS-REH-01215","REHABILITACIÓN GENERAL EN EL CENTRO DE ATENCIÓN MÚLTIPLE POLANCO CCT 14DML0037W, UBICADO EN LA COLONIA PATRIA NUEVA, MUNICIPIO DE GUADALAJARA, JALISCO.",null,null,null,null,{"$f":"G17","v":"$ 0.00 "}]
["A","EDIFICIO A",null,null,null,null,{"$f":"G18","v":"$ 0.00 "}]
["A.01(140)","DEMOLICIONES, DESMONTAJES Y MECANICA DE SUELOS    ",null,null,null,null,{"$f":"G19","v":"$ 0.00 "}]
["A.02(355)","RECUBRIMIENTOS Y ACABADOS                         ",null,null,null,null,{"$f":"G33","v":"$ 0.00 "}]
["A.03(372)","PISOS                                             ",null,null,null,null,{"$f":"G37","v":"$ 0.00 "}]
["A.04(382)","ELEMENTOS COMPLEMENTARIOS DE ALBAÑILERIA          ",null,null,null,null,{"$f":"G40","v":"$ 0.00 "}]
["A.05(393)","PINTURA                                           ",null,null,null,null,{"$f":"G44","v":"$ 0.00 "}]
["A.06(396)","LIMPIEZA                                          ",null,null,null,null,{"$f":"G46","v":"$ 0.00 "}]
["A.07(410)","CANCELERIA, HERRERIA, ALUMINIO, VIDRIOS Y CHAPAS  ",null,null,null,null,{"$f":"G51","v":"$ 0.00 "}]
["A.08(564)","INSTALACION HIDRAULICA, SANITARIA Y GAS EN EDIF.  ",null,null,null,null,{"$f":"G59","v":"$ 0.00 "}]
["03","RED SANITARIA",null,null,null,null,{"$f":"G63","v":"$ 0.00 "}]
["03.01(140)","DEMOLICIONES, DESMONTAJES Y MECANICA DE SUELOS    ",null,null,null,null,{"$f":"G64","v":"$ 0.00 "}]
["03.02(564)","INSTALACION HIDRAULICA, SANITARIA Y GAS EN EDIF.  ",null,null,null,null,{"$f":"G67","v":"$ 0.00 "}]
["03.03(565)","INSTALACION HIDRAULICA, SANITARIA Y GAS EN O. EXT.",null,null,null,null,{"$f":"G69","v":"$ 0.00 "}]
[]
["IMPORTE CON LETRA (IVA INCLUIDO)",null,null,null,null,"SUBTOTAL M.N.",{"$f":"TEXT(G17,  \"$ #,##0.00 ;\")","v":"$ 0.00 "}]
[{"$f":"UPPER(CONVERTIRNUM(ROUND( G17 * 1.16, 2)))","v":"CERO PESOS 00/100 M.N."},null,null,null,null,"IVA M.N.",{"$f":"TEXT(ROUND( G17 * 0.16, 2),  \"$ #,##0.00 ;\")","v":"$ 0.00 "}]
[null,null,null,null,null,"TOTAL M.N.",{"$f":"TEXT(ROUND( G17 * 1.16, 2),  \"$ #,##0.00 ;\")","v":"$ 0.00 "}]